fUSD/lending_fUSD_20240215
["ID","MTS","AMOUNT","RATE_DAILY","PERIOD"]
[314081656,1707963057965,-500.0,0.00036712,7]
[314081657,1707963057976,-500.0,0.00036712,7]
[314081658,1707963057985,-500.0,0.00036712,7]
[314081659,1707963057994,-535.8,0.00036712,7]
[314081660,1707963058003,-500.0,0.00036712,7]
[314081661,1707963058012,-442.84,0.00036712,7]
[314081662,1707963058021,-500.0,0.00036712,7]
[314081663,1707963058031,-500.0,0.00036712,7]
[314081664,1707963058041,-492.85772474,0.00036712,7]
[314081665,1707963058050,-500.0,0.00036712,7]
[314081666,1707963058059,-408.48075538,0.00036712,2]
[314081667,1707963058068,-500.0,0.00036712,7]
[314081668,1707963058077,-418.82,0.00036712,7]
[314081669,1707963058087,-500.0,0.00036712,7]
[314081670,1707963058096,-500.0,0.00036712,7]
[314081671,1707963058105,-500.0,0.00036712,7]
[314081672,1707963058114,-500.0,0.00036712,7]
[314081673,1707963058123,-500.0,0.00036712,7]
[314081674,1707963058132,-500.0,0.00036712,7]
[314081675,1707963058141,-5117.11721077,0.000368,7]
[314081676,1707963058151,-1000.0,0.000368,7]
[314081677,1707963058161,-828.86,0.00036827,2]
[314081678,1707963058171,-301.11,0.000369,7]
[314081679,1707963058181,-500.0,0.00036986,7]
[314081680,1707963058192,-500.0,0.00036986,7]
[314081681,1707963058202,-202.23798829,0.00036986,7]
[314081682,1707963058211,-608.66951798,0.00036986,7]
[314081683,1707963058220,-248.89062842,0.00036986,7]
[314081684,1707963058229,-500.0,0.00036986,7]
[314081685,1707963058240,-960.6,0.00036986,7]
[314081686,1707963058250,-1581.16,0.00036986,7]
[314081687,1707963058260,-297.11311491,0.00036986,7]
[314081688,1707963058271,-500.0,0.00036986,7]
[314081689,1707963058281,-500.0,0.00036986,7]
[314081690,1707963058291,-500.0,0.00036986,7]
[314081691,1707963058300,-500.0,0.00036986,7]
[314081692,1707963058314,-500.0,0.00036986,7]
[314081693,1707963058324,-500.0,0.00036986,7]
[314081694,1707963058333,-379.01704661,0.00036986,7]
[314081695,1707963058343,-157.25561341,0.00036986,7]
[314081696,1707963058353,-500.0,0.00036986,7]
[314081697,1707963058362,-500.0,0.00036986,7]
[314081698,1707963058371,-2037.84,0.00036986,7]
[314081699,1707963058467,-500.0,0.00036986,7]
[314081700,1707963058477,-500.0,0.00036986,7]
[314081701,1707963058486,-500.0,0.00036986,7]
[314081702,1707963058495,-500.0,0.00036986,7]
[314081703,1707963058504,-500.0,0.00036986,7]
[314081704,1707963058514,-500.0,0.00036986,7]
[314081705,1707963058524,-500.0,0.00036986,7]
[314081706,1707963058533,-500.0,0.00036986,7]
[314081707,1707963058543,-500.0,0.00036986,7]
[314081708,1707963058552,-610.54024492,0.00036986,7]
[314081709,1707963058562,-500.0,0.00036986,7]
[314081710,1707963058571,-500.0,0.00036986,7]
[314081711,1707963058580,-500.0,0.00036986,7]
[314081712,1707963058589,-500.0,0.00036986,7]
[314081713,1707963058599,-500.0,0.00036986,7]
[314081714,1707963058607,-500.0,0.00036986,7]
[314081715,1707963058616,-224.09413997,0.00036986,7]
[314081716,1707963058626,-770.42,0.00036986,7]
[314081717,1707963058636,-1096.71,0.00036986,7]
[314081718,1707963058646,-1081.2,0.00036986,7]
[314081719,1707963058657,-155.82835472,0.00036986,7]
[314081720,1707963058667,-500.0,0.00036986,7]
[314081721,1707963058677,-500.0,0.00036986,7]
[314081722,1707963058688,-316.04797428,0.00036986,7]
[314081723,1707963058699,-500.0,0.00036986,7]
[314081724,1707963058709,-500.0,0.00036986,7]
[314081725,1707963058718,-500.0,0.00036986,7]
[314081726,1707963058730,-500.0,0.00036986,7]
[314081727,1707963058739,-520.05,0.00036986,7]
[314081728,1707963058749,-500.0,0.00036986,7]
[314081729,1707963058759,-918.55,0.00036986,7]
[314081730,1707963058769,-500.0,0.00036986,7]
[314081731,1707963058778,-500.0,0.00036986,7]
[314081732,1707963058786,-500.0,0.00036986,7]
[314081733,1707963058796,-500.0,0.00036986,7]
[314081734,1707963058805,-479.43800799,0.00036986,7]
[314081735,1707963058815,-500.0,0.00036986,7]
[314081736,1707963058824,-500.0,0.00036986,7]
[314081737,1707963058834,-500.0,0.00036986,7]
[314081738,1707963058843,-500.0,0.00036986,7]
[314081739,1707963058853,-926.67,0.00036986,7]
[314081740,1707963058862,-1098.7,0.00036986,7]
[314081741,1707963058871,-182.04612785,0.00036986,7]
[314081742,1707963058880,-500.0,0.00036986,7]
[314081743,1707963058890,-500.0,0.00036986,7]
[314081744,1707963058901,-500.0,0.00036986,7]
[314081745,1707963058911,-567.68,0.00036986,7]
[314081746,1707963058921,-2422.19,0.00036986,7]
[314081747,1707963058931,-162.00584819,0.00036986,7]
[314081748,1707963058942,-500.0,0.00036986,7]
[314081749,1707963058952,-500.0,0.00036986,7]
[314081750,1707963058961,-500.0,0.00036986,7]
[314081751,1707963058971,-500.0,0.00036986,7]
[314081752,1707963058980,-535.8,0.00036986,7]
[314081753,1707963058990,-500.0,0.00036986,7]
[314081754,1707963059000,-500.0,0.00036986,7]
[314081755,1707963059011,-500.0,0.00036986,7]
[314081756,1707963059022,-500.0,0.00036986,7]
[314081757,1707963059033,-500.0,0.00036986,7]
[314081758,1707963059044,-500.0,0.00036986,7]
[314081759,1707963059054,-500.0,0.00036986,7]
[314081760,1707963059064,-500.0,0.00036986,7]
[314081761,1707963059074,-168.0,0.00037056,7]
[314081762,1707963059084,-203.0,0.00037125,6]
[314081763,1707963059094,-151.0,0.00037128,2]
[314081764,1707963059104,-1272.57842368,0.00037141,2]
[314081765,1707963059114,-555.6504,0.0003716,3]
[314081766,1707963059124,-1000.0,0.0003722,2]
[314081767,1707963059133,-425.57,0.0003726,7]
[314081768,1707963059145,-500.0,0.0003726,7]
[314081769,1707963059155,-500.0,0.0003726,7]
[314081770,1707963059165,-960.6,0.0003726,7]
[314081771,1707963059175,-1581.16,0.0003726,7]
[314081772,1707963059185,-500.0,0.0003726,7]
[314081773,1707963059200,-278.36323232,0.0003726,7]
[314081774,1707963059211,-500.0,0.0003726,7]
[314081775,1707963059223,-500.0,0.0003726,7]
[314081776,1707963059235,-382.37191466,0.0003726,7]
[314081777,1707963059246,-500.0,0.0003726,7]
[314081778,1707963059256,-500.0,0.0003726,7]
[314081779,1707963059267,-500.0,0.0003726,7]
[314081780,1707963059277,-2037.84,0.0003726,7]
[314081781,1707963059288,-500.0,0.0003726,7]
[314081782,1707963059298,-500.0,0.0003726,7]
[314081783,1707963059309,-500.0,0.0003726,7]
[314081784,1707963059319,-500.0,0.0003726,7]
[314081785,1707963059335,-500.0,0.0003726,7]
[314081786,1707963059345,-500.0,0.0003726,7]
[314081787,1707963059356,-500.0,0.0003726,7]
[314081788,1707963059367,-500.0,0.0003726,7]
[314081789,1707963059378,-500.0,0.0003726,7]
[314081790,1707963059388,-500.0,0.0003726,7]
[314081791,1707963059397,-500.0,0.0003726,7]
[314081792,1707963059408,-257.54621076,0.0003726,7]
[314081793,1707963059417,-500.0,0.0003726,7]
[314081794,1707963059428,-500.0,0.0003726,7]
[314081795,1707963059440,-422.05362326,0.0003726,7]
[314081796,1707963059450,-770.42,0.0003726,7]
[314081797,1707963059460,-1096.71,0.0003726,7]
[314081798,1707963059470,-1081.2,0.0003726,7]
[314081799,1707963059479,-500.0,0.0003726,7]
[314081800,1707963059489,-500.0,0.0003726,7]
[314081801,1707963059499,-292.99930511,0.0003726,7]
[314081802,1707963059509,-500.0,0.0003726,7]
[314081803,1707963059518,-500.0,0.0003726,7]
[314081804,1707963059528,-500.0,0.0003726,7]
[314081805,1707963059537,-520.05,0.0003726,7]
[314081806,1707963059547,-500.0,0.0003726,7]
[314081807,1707963059556,-918.55,0.0003726,7]
[314081808,1707963059565,-500.0,0.0003726,7]
[314081809,1707963059574,-500.0,0.0003726,7]
[314081810,1707963059587,-500.0,0.0003726,7]
[314081811,1707963059596,-500.0,0.0003726,7]
[314081812,1707963059605,-500.0,0.0003726,7]
[314081813,1707963059614,-500.0,0.0003726,7]
[314081814,1707963059623,-500.0,0.0003726,7]
[314081815,1707963059632,-618.69117494,0.0003726,7]
[314081816,1707963059642,-926.67,0.0003726,7]
[314081817,1707963059651,-1098.7,0.0003726,7]
[314081818,1707963059660,-500.0,0.0003726,7]
[314081819,1707963059670,-500.0,0.0003726,7]
[314081820,1707963059679,-500.0,0.0003726,7]
[314081821,1707963059691,-567.68,0.0003726,7]
[314081822,1707963059700,-2422.19,0.0003726,7]
[314081823,1707963059709,-500.0,0.0003726,7]
[314081824,1707963059717,-500.0,0.0003726,7]
[314081825,1707963059727,-267.22911748,0.0003726,7]
[314081826,1707963059737,-500.0,0.0003726,7]
[314081827,1707963059747,-535.8,0.0003726,7]
[314081828,1707963059757,-500.0,0.0003726,7]
[314081829,1707963059766,-500.0,0.0003726,7]
[314081830,1707963059776,-500.0,0.0003726,7]
[314081831,1707963059787,-500.0,0.0003726,7]
[314081832,1707963059797,-500.0,0.0003726,7]
[314081833,1707963059807,-500.0,0.0003726,7]
[314081834,1707963059817,-500.0,0.0003726,7]
[314081835,1707963059827,-500.0,0.0003726,7]
[314081836,1707963059838,-1410.89,0.00037481,2]
[314081837,1707963059848,-500.0,0.00037534,7]
[314081838,1707963059858,-500.0,0.00037534,7]
[314081839,1707963059867,-960.6,0.00037534,7]
[314081840,1707963059876,-1581.16,0.00037534,7]
[314081841,1707963059887,-500.0,0.00037534,7]
[314081842,1707963059896,-500.0,0.00037534,7]
[314081843,1707963059906,-500.0,0.00037534,7]
[314081844,1707963059915,-500.0,0.00037534,7]
[314081845,1707963059927,-257.39779028,0.00037534,7]
[314081846,1707963059938,-500.0,0.00037534,7]
[314081847,1707963059947,-2037.84,0.00037534,7]
[314081848,1707963059957,-500.0,0.00037534,7]
[314081849,1707963059967,-500.0,0.00037534,7]
[314081850,1707963059976,-500.0,0.00037534,7]
[314081851,1707963059987,-500.0,0.00037534,7]
[314081852,1707963059997,-500.0,0.00037534,7]
[314081853,1707963060006,-500.0,0.00037534,7]
[314081854,1707963060016,-500.0,0.00037534,7]
[314081855,1707963060026,-500.0,0.00037534,7]
[314081856,1707963060036,-500.0,0.00037534,7]
[314081857,1707963060046,-500.0,0.00037534,7]
[314081858,1707963060055,-500.0,0.00037534,7]
[314081859,1707963060065,-500.0,0.00037534,7]
[314081860,1707963060075,-500.0,0.00037534,7]
[314081861,1707963060085,-770.42,0.00037534,7]
[314081862,1707963060094,-1096.71,0.00037534,7]
[314081863,1707963060103,-1081.2,0.00037534,7]
[314081864,1707963060112,-500.0,0.00037534,7]
[314081865,1707963060124,-500.0,0.00037534,7]
[314081866,1707963060134,-500.0,0.00037534,7]
[314081867,1707963060143,-500.0,0.00037534,7]
[314081868,1707963060153,-500.0,0.00037534,7]
[314081869,1707963060162,-520.05,0.00037534,7]
[314081870,1707963060172,-172.69783113,0.00037534,7]
[314081871,1707963060183,-918.55,0.00037534,7]
[314081872,1707963060194,-500.0,0.00037534,7]
[314081873,1707963060203,-500.0,0.00037534,7]
[314081874,1707963060212,-500.0,0.00037534,7]
[314081875,1707963060221,-500.0,0.00037534,7]
[314081876,1707963060230,-500.0,0.00037534,7]
[314081877,1707963060240,-500.0,0.00037534,7]
[314081878,1707963060249,-500.0,0.00037534,7]
[314081879,1707963060348,-926.67,0.00037534,7]
[314081880,1707963060359,-1098.7,0.00037534,7]
[314081881,1707963060369,-500.0,0.00037534,7]
[314081882,1707963060380,-500.0,0.00037534,7]
[314081883,1707963060390,-500.0,0.00037534,7]
[314081884,1707963060400,-567.68,0.00037534,7]
[314081885,1707963060410,-2422.19,0.00037534,7]
[314081886,1707963060421,-500.0,0.00037534,7]
[314081887,1707963060432,-500.0,0.00037534,7]
[314081888,1707963060442,-500.0,0.00037534,7]
[314081889,1707963060452,-535.8,0.00037534,7]
[314081890,1707963060462,-500.0,0.00037534,7]
[314081891,1707963060471,-500.0,0.00037534,7]
[314081892,1707963060481,-500.0,0.00037534,7]
[314081893,1707963060490,-500.0,0.00037534,7]
[314081894,1707963060500,-500.0,0.00037534,7]
[314081895,1707963060510,-500.0,0.00037534,7]
[314081896,1707963060520,-636.49640865,0.00037534,7]
[314081897,1707963060531,-500.0,0.00037534,7]
[314081898,1707963060541,-154.04,0.000376,3]
[314081899,1707963060551,-154.04,0.000376,3]
[314081900,1707963060561,-154.04,0.000376,3]
[314081901,1707963060570,-154.04,0.000376,3]
[314081902,1707963060580,-154.04,0.000376,3]
[314081903,1707963060589,-154.04,0.000376,3]
[314081904,1707963060598,-154.04,0.000376,3]
[314081905,1707963060607,-154.04,0.000376,3]
[314081906,1707963060616,-154.04,0.000376,3]
[314081907,1707963060625,-154.04,0.000376,3]
[314081908,1707963060634,-154.04,0.000376,3]
[314081909,1707963060643,-154.04,0.000376,3]
[314081910,1707963060652,-154.04,0.000376,3]
[314081911,1707963060661,-500.0,0.0003768,2]
[314081912,1707963060670,-165.33,0.00037787,2]
[314081913,1707963060679,-214.02562295,0.00037808,7]
[314081914,1707963060688,-500.0,0.00037808,7]
[314081915,1707963060697,-960.6,0.00037808,7]
[314081916,1707963060707,-1581.16,0.00037808,7]
[314081917,1707963060716,-500.0,0.00037808,7]
[314081918,1707963060725,-500.0,0.00037808,7]
[314081919,1707963060734,-500.0,0.00037808,7]
[314081920,1707963060743,-500.0,0.00037808,7]
[314081921,1707963060751,-500.0,0.00037808,7]
[314081922,1707963060761,-2037.84,0.00037808,7]
[314081923,1707963060770,-342.01265373,0.00037808,7]
[314081924,1707963060779,-500.0,0.00037808,7]
[314081925,1707963060788,-500.0,0.00037808,7]
[314081926,1707963060797,-500.0,0.00037808,7]
[314081927,1707963060807,-500.0,0.00037808,7]
[314081928,1707963060816,-500.0,0.00037808,7]
[314081929,1707963060825,-500.0,0.00037808,7]
[314081930,1707963060833,-409.23372496,0.00037808,7]
[314081931,1707963060843,-500.0,0.00037808,7]
[314081932,1707963060853,-500.0,0.00037808,7]
[314081933,1707963060862,-500.0,0.00037808,7]
[314081934,1707963060872,-500.0,0.00037808,7]
[314081935,1707963060882,-500.0,0.00037808,7]
[314081936,1707963060891,-770.42,0.00037808,7]
[314081937,1707963060901,-1096.71,0.00037808,7]
[314081938,1707963060911,-1081.2,0.00037808,7]
[314081939,1707963060920,-515.56197568,0.00037808,7]
[314081940,1707963060930,-500.0,0.00037808,7]
[314081941,1707963060941,-500.0,0.00037808,7]
[314081942,1707963060951,-345.19224969,0.00037808,7]
[314081943,1707963060960,-500.0,0.00037808,7]
[314081944,1707963060970,-520.05,0.00037808,7]
[314081945,1707963060979,-918.55,0.00037808,7]
[314081946,1707963060988,-500.0,0.00037808,7]
[314081947,1707963060998,-425.73326766,0.00037808,7]
[314081948,1707963061008,-637.05436882,0.00037808,7]
[314081949,1707963061017,-500.0,0.00037808,7]
[314081950,1707963061026,-500.0,0.00037808,7]
[314081951,1707963061035,-500.0,0.00037808,7]
[314081952,1707963061047,-500.0,0.00037808,7]
[314081953,1707963061057,-926.67,0.00037808,7]
[314081954,1707963061067,-1098.7,0.00037808,7]
[314081955,1707963061078,-500.0,0.00037808,7]
[314081956,1707963061088,-500.0,0.00037808,7]
[314081957,1707963061100,-500.0,0.00037808,7]
[314081958,1707963061109,-567.68,0.00037808,7]
[314081959,1707963061119,-2422.19,0.00037808,7]
[314081960,1707963061129,-500.0,0.00037808,7]
[314081961,1707963061139,-500.0,0.00037808,7]
[314081962,1707963061149,-500.0,0.00037808,7]
[314081963,1707963061159,-535.8,0.00037808,7]
[314081964,1707963061178,-500.0,0.00037808,7]
[314081965,1707963061190,-500.0,0.00037808,7]
[314081966,1707963061200,-500.0,0.00037808,7]
[314081967,1707963061211,-383.34754169,0.00037808,7]
[314081968,1707963061221,-500.0,0.00037808,7]
[314081969,1707963061230,-500.0,0.00037808,7]
[314081970,1707963061240,-500.0,0.00037808,7]
[314081971,1707963061251,-1883.69487439,0.00037849,2]
[314081972,1707963061263,-5747.19842254,0.00037849,2]
[314081973,1707963061273,-3295.040267,0.00037897,2]
[314081974,1707963061283,-150.58809,0.000379,3]
[314081975,1707963061293,-604113.268347,0.000379,3]
[314081976,1707963061302,-2973.449,0.00037908,2]
[314081977,1707963061316,-1377.651,0.00037908,2]
[314081978,1707963061325,-399.738,0.00037908,2]
[314081979,1707963061335,-217.403,0.00037908,2]
[314081980,1707963061346,-1239.367,0.00037908,2]
[314081981,1707963061356,-1261.424,0.00037908,2]
[314081982,1707963061365,-203.0,0.00038078,8]
[314081983,1707963061375,-500.0,0.00038082,7]
[314081984,1707963061384,-960.6,0.00038082,7]
[314081985,1707963061395,-1581.16,0.00038082,7]
[314081986,1707963061407,-267.70242706,0.00038082,7]
[314081987,1707963061417,-500.0,0.00038082,7]
[314081988,1707963061426,-500.0,0.00038082,7]
[314081989,1707963061437,-500.0,0.00038082,7]
[314081990,1707963061448,-500.0,0.00038082,7]
[314081991,1707963061458,-2037.84,0.00038082,7]
[314081992,1707963061468,-500.0,0.00038082,7]
[314081993,1707963061478,-182.47266429,0.00038082,7]
[314081994,1707963061487,-500.0,0.00038082,7]
[314081995,1707963061497,-161.54449331,0.00038082,7]
[314081996,1707963061507,-500.0,0.00038082,7]
[314081997,1707963061516,-438.64939902,0.00038082,7]
[314081998,1707963061527,-500.0,0.00038082,7]
[314081999,1707963061537,-500.0,0.00038082,7]
[314082000,1707963061546,-206.38686142,0.00038082,7]
[314082001,1707963061555,-500.0,0.00038082,7]
[314082002,1707963061565,-500.0,0.00038082,7]
[314082003,1707963061575,-770.42,0.00038082,7]
[314082004,1707963061584,-1096.71,0.00038082,7]
[314082005,1707963061594,-1081.2,0.00038082,7]
[314082006,1707963061603,-500.0,0.00038082,7]
[314082007,1707963061613,-500.0,0.00038082,7]
[314082008,1707963061622,-500.0,0.00038082,7]
[314082009,1707963061632,-520.05,0.00038082,7]
[314082010,1707963061641,-918.55,0.00038082,7]
[314082011,1707963061649,-500.0,0.00038082,7]
[314082012,1707963061659,-465.83402766,0.00038082,7]
[314082013,1707963061668,-500.0,0.00038082,7]
[314082014,1707963061676,-500.0,0.00038082,7]
[314082015,1707963061686,-500.0,0.00038082,7]
[314082016,1707963061696,-926.67,0.00038082,7]
[314082017,1707963061706,-1098.7,0.00038082,7]
[314082018,1707963061715,-500.0,0.00038082,7]
[314082019,1707963061725,-500.0,0.00038082,7]
[314082020,1707963061733,-500.0,0.00038082,7]
[314082021,1707963061743,-567.68,0.00038082,7]
[314082022,1707963061752,-2422.19,0.00038082,7]
[314082023,1707963061761,-500.0,0.00038082,7]
[314082024,1707963061771,-500.0,0.00038082,7]
[314082025,1707963061780,-500.0,0.00038082,7]
[314082026,1707963061789,-535.8,0.00038082,7]
[314082027,1707963061798,-500.0,0.00038082,7]
[314082028,1707963061807,-500.0,0.00038082,7]
[314082029,1707963061816,-500.0,0.00038082,7]
[314082030,1707963061825,-500.0,0.00038082,7]
[314082031,1707963061835,-500.0,0.00038082,7]
[314082032,1707963061844,-500.0,0.00038082,7]
[314082033,1707963061853,-1000.0,0.000381,2]
[314082034,1707963061862,-301.11,0.000382,7]
[314082035,1707963061871,-900.28324645,0.00038319,8]
[314082036,1707963061881,-521.48370657,0.00038356,7]
[314082037,1707963061890,-960.6,0.00038356,7]
[314082038,1707963061899,-1581.16,0.00038356,7]
[314082039,1707963061909,-500.0,0.00038356,7]
[314082040,1707963061918,-500.0,0.00038356,7]
[314082041,1707963061928,-279.98230716,0.00038356,7]
[314082042,1707963061937,-500.0,0.00038356,7]
[314082043,1707963061950,-2037.84,0.00038356,7]
[314082044,1707963061959,-500.0,0.00038356,7]
[314082045,1707963062078,-500.0,0.00038356,7]
[314082046,1707963062088,-500.0,0.00038356,7]
[314082047,1707963062099,-500.0,0.00038356,7]
[314082048,1707963062108,-500.0,0.00038356,7]
[314082049,1707963062117,-500.0,0.00038356,7]
[314082050,1707963062127,-500.0,0.00038356,7]
[314082051,1707963062137,-770.42,0.00038356,7]
[314082052,1707963062146,-1096.71,0.00038356,7]
[314082053,1707963062156,-1081.2,0.00038356,7]
[314082054,1707963062166,-500.0,0.00038356,7]
[314082055,1707963062176,-500.0,0.00038356,7]
[314082056,1707963062186,-433.19577687,0.00038356,7]
[314082057,1707963062198,-520.05,0.00038356,7]
[314082058,1707963062207,-918.55,0.00038356,7]
[314082059,1707963062215,-500.0,0.00038356,7]
[314082060,1707963062224,-500.0,0.00038356,7]
[314082061,1707963062233,-500.0,0.00038356,7]
[314082062,1707963062242,-500.0,0.00038356,7]
[314082063,1707963062254,-926.67,0.00038356,7]
[314082064,1707963062263,-1098.7,0.00038356,7]
[314082065,1707963062274,-500.0,0.00038356,7]
[314082066,1707963062283,-500.0,0.00038356,7]
[314082067,1707963062293,-187.4958038,0.00038356,7]
[314082068,1707963062304,-567.68,0.00038356,7]
[314082069,1707963062313,-2422.19,0.00038356,7]
[314082070,1707963062326,-500.0,0.00038356,7]
[314082071,1707963062337,-500.0,0.00038356,7]
[314082072,1707963062347,-500.0,0.00038356,7]
[314082073,1707963062356,-535.8,0.00038356,7]
[314082074,1707963062366,-500.0,0.00038356,7]
[314082075,1707963062376,-500.0,0.00038356,7]
[314082076,1707963062388,-500.0,0.00038356,7]
[314082077,1707963062398,-558.92400907,0.00038356,7]
[314082078,1707963062408,-500.0,0.00038356,7]
[314082079,1707963062417,-155.861271,0.00038356,7]
[314082080,1707963062427,-151.0,0.00038356,7]
[314082081,1707963062436,-151.0,0.00038356,7]
[314082082,1707963062446,-151.0,0.00038356,7]
[314082083,1707963062455,-151.0,0.00038356,7]
[314082084,1707963062464,-151.0,0.00038356,7]
[314082085,1707963062473,-151.0,0.00038356,7]
[314082086,1707963062483,-151.0,0.00038356,7]
[314082087,1707963062492,-151.0,0.00038356,7]
[314082088,1707963062502,-151.0,0.00038356,7]
[314082089,1707963062511,-151.0,0.00038356,7]
[314082090,1707963062521,-151.0,0.00038356,7]
[314082091,1707963062531,-151.0,0.00038356,7]
[314082092,1707963062541,-210.837961,0.00038356,7]
[314082093,1707963062551,-210.837961,0.00038356,7]
[314082094,1707963062561,-151.0,0.00038356,7]
[314082095,1707963062571,-178.588131,0.00038356,7]
[314082096,1707963062581,-210.837961,0.00038356,7]
[314082097,1707963062591,-210.837961,0.00038356,7]
[314082098,1707963062601,-1000.0,0.000386,2]
[314082099,1707963062610,-1252.0,0.000386,2]
[314082100,1707963062620,-1247.73595181,0.000386,2]
[314082101,1707963062630,-960.6,0.0003863,7]
[314082102,1707963062640,-1581.16,0.0003863,7]
[314082103,1707963062650,-500.0,0.0003863,7]
[314082104,1707963062660,-500.0,0.0003863,7]
[314082105,1707963062670,-500.0,0.0003863,7]
[314082106,1707963062679,-2037.84,0.0003863,7]
[314082107,1707963062690,-500.0,0.0003863,7]
[314082108,1707963062702,-500.0,0.0003863,7]
[314082109,1707963062711,-626.85971791,0.0003863,7]
[314082110,1707963062721,-352.26196394,0.0003863,7]
[314082111,1707963062731,-500.0,0.0003863,7]
[314082112,1707963062741,-500.0,0.0003863,7]
[314082113,1707963062751,-500.0,0.0003863,7]
[314082114,1707963062761,-770.42,0.0003863,7]
[314082115,1707963062771,-1096.71,0.0003863,7]
[314082116,1707963062781,-1081.2,0.0003863,7]
[314082117,1707963062791,-500.0,0.0003863,7]
[314082118,1707963062800,-500.0,0.0003863,7]
[314082119,1707963062810,-520.05,0.0003863,7]
[314082120,1707963062819,-918.55,0.0003863,7]
[314082121,1707963062829,-500.0,0.0003863,7]
[314082122,1707963062839,-500.0,0.0003863,7]
[314082123,1707963062849,-500.0,0.0003863,7]
[314082124,1707963062858,-500.0,0.0003863,7]
[314082125,1707963062868,-926.67,0.0003863,7]
[314082126,1707963062878,-1098.7,0.0003863,7]
[314082127,1707963062887,-500.0,0.0003863,7]
[314082128,1707963062897,-500.0,0.0003863,7]
[314082129,1707963062907,-567.68,0.0003863,7]
[314082130,1707963062918,-2422.19,0.0003863,7]
[314082131,1707963062928,-500.0,0.0003863,7]
[314082132,1707963062939,-500.0,0.0003863,7]
[314082133,1707963062951,-500.0,0.0003863,7]
[314082134,1707963062960,-535.8,0.0003863,7]
[314082135,1707963062970,-500.0,0.0003863,7]
[314082136,1707963062980,-500.0,0.0003863,7]
[314082137,1707963062991,-500.0,0.0003863,7]
[314082138,1707963063000,-500.0,0.0003863,7]
[314082139,1707963063012,-445.0,0.0003864,2]
[314082140,1707963063021,-220.21816952,0.0003869,30]
[314082141,1707963063032,-168.0,0.000387,7]
[314082142,1707963063042,-1272.57842368,0.00038719,2]
[314082143,1707963063052,-457.46231973,0.00038747,30]
[314082144,1707963063062,-42756.81456715,0.00038747,2]
[314082145,1707963063072,-417.19534398,0.00038747,30]
[314082146,1707963063082,-1301.03325504,0.00038747,3]
[314082147,1707963063092,-155.31520448,0.00038747,120]
[314082148,1707963063101,-156.66524343,0.00038747,120]
[314082149,1707963063111,-3743.25948219,0.00038747,2]
[314082150,1707963063121,-282.01688437,0.00038747,2]
[314082151,1707963063131,-310.24819826,0.00038747,2]
[314082152,1707963063141,-155.15285071,0.00038747,2]
[314082153,1707963063150,-7657.43199118,0.00038747,120]
[314082154,1707963063160,-7454.46175369,0.00038747,2]
[314082155,1707963063169,-604.60250768,0.00038747,30]